bitfinex/quotes_ETHUSD_20250804
["timestamp","ask_amount","ask_price","bid_price","bid_amount"]
[1754338617138,2.71421979,3684.3,3684.2,4.266]
[1754338617552,3.68191979,3684.3,3684.2,4.266]
[1754338617851,3.68191979,3684.3,3683.8,0.1352]
[1754338617852,2.7145145,3683.9,3683.8,0.1352]
[1754338618152,2.8497145,3683.9,3683.8,4.266]
[1754338618324,2.71458819,3683.8,3683.7,4.266]
[1754338618650,3.68228819,3683.8,3683.7,4.266]
[1754338619014,0.9677,3683.8,3683.7,4.266]
[1754338620550,2.71466188,3683.7,3683.6,5.08707232]
[1754338620750,3.70236671,3683.7,3683.6,4.58707232]
[1754338620950,3.68236188,3683.7,3683.6,4.58707232]
[1754338621529,3.68236188,3683.7,3683.6,4.58397232]
[1754338621530,6.68236188,3683.7,3683.6,4.58397232]
[1754338621857,6.68236188,3683.7,3683.6,3.22977232]
[1754338622157,8.08672446,3683.7,3683.6,3.22977232]
[1754338624262,4.40436258,3683.7,3683.6,5.9445079]
[1754338624470,0.4983,3683.9,3683.6,3.22977232]
[1754338624666,2.71444265,3684.0,3683.6,3.22977232]
[1754338624968,0.9677,3683.9,3683.6,3.22977232]
[1754338625193,0.1352,3683.7,3683.6,3.22977232]
[1754338626266,0.1352,3683.7,3683.6,5.9445079]
[1754338626560,0.1352,3683.7,3683.6,3.22977232]
[1754338627533,0.1352,3683.7,3683.6,5.9445079]
[1754338627974,0.1352,3683.7,3683.6,3.22977232]
[1754338628375,0.1352,3683.7,3683.6,5.9445079]
[1754338629457,0.1352,3683.7,3683.6,3.22977232]
[1754338629660,1.1029,3683.7,3683.6,3.22977232]
[1754338631888,1.1029,3683.7,3683.6,5.9445079]
[1754338632036,1.1029,3683.7,3683.6,4.5871079]
[1754338632037,0.1352,3683.7,3683.6,4.5871079]
[1754338633963,0.1352,3683.7,3683.6,8.8511079]
[1754338634784,0.4694,3684.2,3683.7,2.71461396]
[1754338634959,0.001,3685.3,3683.9,2.7145145]
[1754338634960,0.1352,3684.0,3683.9,2.7145145]
[1754338635165,2.71481958,3684.9,3684.2,2.71426909]
[1754338635343,3.9677,3684.8,3684.3,4.263]
[1754338635544,0.9677,3684.7,3684.3,4.263]
[1754338635740,0.4694,3684.7,3684.3,4.263]
[1754338635940,0.4983,3684.6,3684.3,6.97720049]
[1754338636442,0.4983,3684.6,3684.3,5.61990049]
[1754338636641,0.9386,3684.6,3684.3,5.61990049]
[1754338637575,0.9386,3684.6,3684.3,2.9057]
[1754338637946,0.9386,3684.6,3684.3,5.61990815]
[1754338638650,0.001,3684.9,3684.3,2.9057]
[1754338638990,0.001,3684.9,3684.6,2.71393759]
[1754338639643,0.001,3684.9,3684.4,2.71407644]
[1754338639974,0.4783,3684.9,3684.4,2.71407644]
[1754338640173,0.4413,3684.9,3684.4,2.71407644]
[1754338640379,0.4773,3684.8,3684.4,2.71407644]
[1754338640538,0.9176,3684.8,3684.3,0.4672]
[1754338640741,3.001,3684.9,3683.7,3.92030842]
[1754338640742,0.001,3684.9,3683.7,1.20566882]
[1754338640941,0.001,3684.9,3683.6,2.34157232]
[1754338640942,3.63145944,3684.8,3684.2,2.71428802]
[1754338641195,3.63145944,3684.8,3684.2,6.97628802]
[1754338641346,3.63145944,3684.8,3684.2,4.262]
[1754338641540,3.63145944,3684.8,3684.2,6.97629138]
[1754338641741,3.63145944,3684.8,3684.2,4.262]
[1754338641942,0.9176,3684.8,3684.2,6.97629282]
[1754338642183,0.9176,3684.8,3684.2,4.7292]
[1754338642399,0.9176,3684.8,3684.3,2.71415982]
[1754338642600,0.9176,3684.8,3684.2,4.7292]
[1754338642601,3.63145722,3684.8,3684.2,7.44347009]
[1754338642890,3.63146751,3684.8,3684.2,6.97628039]
[1754338643561,0.9176,3684.8,3684.3,2.71421288]
[1754338643759,0.9176,3684.7,3684.2,4.262]
[1754338644011,0.9176,3684.7,3684.3,2.71417866]
[1754338644277,0.9176,3684.7,3684.4,2.71413741]
[1754338644863,0.9176,3684.7,3684.3,2.71419008]
[1754338645062,0.9176,3684.7,3683.7,2.71460038]
[1754338645063,2.71414878,3684.4,3683.8,2.7145464]
[1754338645300,0.1352,3684.2,3683.9,4.261]
[1754338645612,0.9176,3684.1,3683.9,6.97551071]
[1754338645818,0.1352,3684.2,3683.9,6.97551071]
[1754338646806,0.1352,3684.2,3684.0,2.71441989]
[1754338646966,0.1352,3684.2,3683.9,4.261]
[1754338647161,0.1352,3684.2,3683.7,2.71459824]
[1754338647367,1.0528,3684.2,3683.8,6.97453789]
[1754338647885,0.1352,3684.2,3683.9,3.18169395]
[1754338648080,0.1352,3684.2,3684.1,2.71436714]
[1754338648300,0.1352,3684.2,3684.0,0.4672]
[1754338648496,0.1352,3684.2,3684.1,2.71436714]
[1754338649030,4.262,3684.9,3684.5,2.71401016]
[1754338649186,0.1362,3684.9,3684.5,2.71401016]
[1754338649386,0.9176,3684.8,3684.3,0.1352]
[1754338649714,0.1352,3684.5,3683.8,0.1352]
[1754338649914,3.551,3684.9,3683.9,2.9028]
[1754338650085,0.1352,3684.2,3683.9,2.9028]
[1754338650287,0.9176,3684.1,3683.9,2.9028]
[1754338650728,0.9176,3684.1,3683.8,2.7145671]
[1754338651028,0.9176,3684.1,3683.9,2.71450516]
[1754338651235,0.9176,3684.1,3683.9,4.259]
[1754338651416,0.1352,3684.2,3684.0,0.4672]
[1754338651581,0.1352,3684.3,3684.1,2.71431821]
[1754338653120,0.9176,3684.2,3684.0,4.259]
[1754338653320,0.9176,3684.1,3683.9,2.71448548]
[1754338653625,0.1352,3683.9,3683.6,6.97369375]
[1754338653824,0.9176,3683.8,3683.6,6.97369375]
[1754338654337,0.1352,3683.9,3683.8,2.71458819]
[1754338654824,0.1352,3683.9,3683.8,4.259]
[1754338655019,0.4773,3684.5,3683.8,7.44078819]
[1754338655224,0.1352,3684.2,3684.0,2.71443364]
[1754338655833,0.1352,3684.2,3684.1,2.71436714]
[1754338656035,0.1352,3684.2,3684.0,2.71443472]
[1754338656348,0.1352,3684.2,3683.8,2.7145384]
[1754338656674,1.0528,3684.2,3683.9,6.97351045]
[1754338656854,0.9176,3684.2,3684.0,2.7144391]
[1754338657056,0.1352,3684.2,3684.0,2.71444082]
[1754338657255,0.1352,3684.2,3684.1,2.71436714]
[1754338657566,0.1352,3684.5,3684.4,2.71414612]
[1754338657873,0.001,3684.9,3684.8,2.71385149]
[1754338658175,2.7139988,3684.6,3684.5,0.02714072]
[1754338658331,2.7139988,3684.6,3683.9,2.71450673]
[1754338658332,2.71412699,3684.5,3683.9,2.71450673]
[1754338658536,3.19142699,3684.5,3683.9,2.71450673]
[1754338658765,0.4403,3684.4,3683.8,2.71456622]
[1754338659049,0.4773,3684.3,3683.5,2.7147436]
[1754338659234,0.4403,3684.2,3683.2,0.002]
[1754338659463,0.4403,3684.2,3683.3,4.99690679]
[1754338659661,0.4403,3684.2,3683.7,2.71458991]
[1754338659831,0.4403,3684.2,3683.6,4.258]
[1754338660766,0.4403,3684.2,3683.8,2.71457301]
[1754338661578,2.71415842,3684.4,3683.7,2.71460921]
[1754338661782,0.9176,3684.3,3683.7,2.71460921]
[1754338661983,0.59846126,3684.4,3683.7,2.71460921]
[1754338662188,0.9176,3684.2,3683.6,6.97270586]
[1754338662487,0.4773,3684.1,3683.6,6.97270586]
[1754338662812,0.9176,3684.0,3683.1,0.3697]
[1754338662959,0.9176,3684.0,3683.5,5.61448373]
[1754338663161,0.4403,3684.2,3683.7,2.71464627]
[1754338663365,0.4773,3684.0,3683.7,2.71464627]
[1754338663849,0.9176,3684.0,3683.7,2.71464627]
[1754338664596,0.4773,3684.5,3684.0,2.71442417]
[1754338664780,0.76744775,3684.4,3683.8,0.4672]
[1754338664967,0.4773,3684.3,3683.8,2.71458518]
[1754338665294,0.9176,3684.2,3683.8,2.71458518]
[1754338665688,0.9176,3684.2,3683.9,2.71445128]
[1754338665857,0.4773,3684.5,3684.0,2.71437426]
[1754338666057,0.9176,3684.4,3684.0,2.71437426]
[1754338666496,0.41889565,3684.5,3683.9,2.71448349]
[1754338666693,0.9224,3684.3,3683.7,3.18185093]
[1754338666874,0.9224,3684.3,3683.8,2.71458586]
[1754338667191,0.9224,3684.3,3683.9,2.71445956]
[1754338667561,0.9224,3684.3,3684.0,2.71443417]
[1754338667763,0.9224,3684.3,3684.1,2.71436166]
[1754338668265,0.1352,3684.1,3684.0,2.71444082]
[1754338669593,0.1352,3684.1,3683.7,2.714594]
[1754338669803,1.0576,3684.1,3683.6,4.256]
[1754338669983,0.4627,3684.0,3683.5,2.84999375]
[1754338670162,0.9224,3684.0,3683.6,4.256]
[1754338670363,0.1352,3684.1,3683.6,2.71473558]
[1754338670693,0.9224,3683.9,3683.5,0.1352]
[1754338670906,0.6915685,3684.1,3683.3,0.002]
[1754338670907,0.1352,3683.5,3683.3,0.002]
[1754338671107,0.9224,3683.8,3683.3,0.002]
[1754338671409,3.63728298,3683.4,3683.3,0.002]
[1754338672002,3.63728298,3683.4,3682.7,0.002]
[1754338672003,2.8501646,3683.3,3682.7,2.71539902]
[1754338672299,3.7725646,3683.3,3682.7,2.71539902]
[1754338672904,1.0576,3683.3,3682.9,2.71524382]
[1754338673131,4.7147,3683.7,3682.6,2.8977068]
[1754338673269,0.1352,3683.3,3683.1,2.71505975]
[1754338673599,0.1352,3683.3,3682.9,2.7152352]
[1754338673812,0.1352,3683.3,3683.2,2.71502717]
[1754338673963,0.1352,3683.8,3683.5,2.71476974]
[1754338674176,0.1352,3683.8,3683.6,2.71472334]
[1754338674508,0.1352,3683.8,3683.7,2.71466188]
[1754338675089,0.1352,3683.8,3683.5,3.21086863]
[1754338675387,0.1352,3683.8,3683.7,2.71466188]
[1754338675710,0.1352,3683.8,3683.6,2.71469222]
[1754338676103,0.1352,3683.8,3683.4,2.71485644]
[1754338676417,0.5979,3683.8,3683.4,2.71485644]
[1754338676574,1.0576,3683.8,3683.5,2.71474491]
[1754338676774,0.1352,3683.8,3683.5,2.71474491]
[1754338677016,0.1352,3683.8,3683.3,4.7501]
[1754338677309,3.0,3684.4,3684.0,2.71439458]
[1754338677514,4.254,3684.5,3684.1,3.21039893]
[1754338677838,4.3892,3684.5,3684.1,3.21039893]
[1754338678020,4.3892,3684.5,3684.2,2.71426339]
[1754338678999,4.3892,3684.5,3684.0,2.71439458]
[1754338679720,4.3892,3684.5,3684.2,2.71429213]
[1754338679886,4.3892,3684.5,3683.9,3.21060426]
[1754338680219,4.3892,3684.5,3684.0,2.71438156]
[1754338680413,0.9224,3684.4,3683.8,4.254]
[1754338680619,0.1352,3684.2,3683.8,5.61134245]
[1754338681016,0.9224,3684.1,3683.8,5.61134245]
[1754338683099,0.1352,3684.2,3683.8,5.61134245]
[1754338683100,0.1352,3684.2,3684.0,2.71443142]
[1754338683705,0.1352,3684.2,3683.9,2.71448536]
[1754338684211,0.1352,3684.2,3683.9,0.83259379]
[1754338684387,4.254,3684.7,3684.0,0.4961]
[1754338684590,0.001,3684.7,3684.1,4.253]
[1754338684896,0.001,3684.7,3684.2,0.4961]
[1754338685133,0.1352,3684.4,3684.2,3.21034934]
[1754338685422,0.1352,3684.4,3684.3,2.71421979]
[1754338685623,0.1352,3684.4,3684.3,3.21031979]
[1754338686700,0.001,3684.7,3684.6,2.7139988]
[1754338686894,0.001,3684.7,3683.5,2.99]
[1754338687228,1.0576,3684.6,3684.4,2.71414597]
[1754338687522,1.0576,3684.6,3684.3,2.71419956]
[1754338687693,0.9224,3684.5,3684.3,2.71419956]
[1754338687894,0.1352,3684.6,3684.2,2.71427334]
[1754338688135,0.9224,3684.5,3684.1,4.252]
[1754338688428,0.001,3684.7,3684.2,0.4961]
[1754338688593,0.001,3684.7,3684.2,1.001]
[1754338688796,0.001,3684.7,3684.6,2.7139988]
[1754338689935,0.001,3684.7,3684.4,2.71414612]
[1754338690144,0.001,3684.7,3684.6,2.7139988]
[1754338690533,0.001,3684.7,3684.5,2.71402774]
[1754338690909,0.001,3684.7,3684.6,2.7139988]
[1754338691545,0.001,3684.7,3684.5,2.71405421]
[1754338691850,0.9234,3684.7,3684.3,2.99]
[1754338692009,0.4607,3684.7,3684.3,2.99]
[1754338692339,0.9224,3684.6,3684.3,5.7041928]
[1754338692514,0.9224,3684.5,3684.3,5.7041928]
[1754338693711,0.9224,3684.5,3684.3,4.3470928]
[1754338694639,0.9224,3684.5,3684.3,1.6329]
[1754338694846,0.9224,3684.4,3684.3,1.6329]
[1754338695246,1.29965343,3684.4,3684.3,1.6329]
[1754338695447,1.29965343,3684.4,3684.1,2.71435568]
[1754338695615,0.1352,3684.3,3684.0,2.71439425]
[1754338696814,0.1352,3684.3,3683.9,2.71448905]
[1754338697021,1.0344,3684.3,3684.0,2.71443064]
[1754338697553,1.0344,3684.3,3683.8,4.25]
[1754338697751,1.0344,3684.3,3683.9,2.7145145]
[1754338698420,0.8992,3684.2,3684.0,2.7144401]
[1754338698622,2.71403146,3684.6,3683.8,6.96457721]
[1754338698836,0.1352,3684.2,3683.8,6.96457721]
[1754338699150,0.1352,3684.2,3683.9,2.7145145]
[1754338699830,0.1352,3684.2,3683.1,0.4573]
[1754338699831,0.8992,3684.1,3683.1,0.4573]
[1754338700151,0.1352,3683.8,3683.1,0.1372]
[1754338700384,0.1352,3683.5,3683.2,4.249]
[1754338700556,0.1352,3683.5,3683.2,4.7043]
[1754338700758,0.1352,3683.5,3683.3,0.4553]
[1754338700953,0.1352,3683.5,3683.4,0.4553]
[1754338701158,0.1352,3683.5,3683.4,2.71488298]
[1754338701843,0.1352,3683.5,3683.3,2.7149376]
[1754338702043,0.1352,3683.5,3683.2,4.249]
[1754338702361,0.1352,3683.5,3683.1,0.002]
[1754338702362,0.1352,3683.5,3683.4,2.71488298]
[1754338702519,0.1352,3683.5,3683.3,6.96292835]
[1754338702959,0.1352,3683.5,3683.1,0.002]
[1754338703159,0.1352,3683.2,3683.1,0.002]
[1754338703855,0.1352,3683.2,3682.9,4.248]
[1754338704047,0.1352,3683.2,3683.1,2.71510412]
[1754338705584,0.1352,3683.4,3683.3,2.71492538]
[1754338706352,0.1352,3683.4,3682.9,4.248]
[1754338706353,0.1352,3683.4,3683.2,2.71500271]
[1754338706744,0.1352,3683.4,3683.3,2.71495669]
[1754338707869,0.1352,3683.4,3683.0,4.248]
[1754338708031,0.8992,3683.3,3683.0,4.248]
[1754338708568,0.8992,3683.3,3683.1,0.002]
[1754338708769,0.8992,3683.3,3683.2,2.71500693]
[1754338709440,0.1352,3683.4,3683.3,2.71495669]
[1754338710957,0.1352,3683.8,3683.3,5.67301139]
[1754338711279,0.1352,3683.8,3683.7,2.71463916]
[1754338711478,0.1352,3683.8,3683.3,4.68521139]
[1754338711479,0.1352,3683.8,3683.6,2.71471965]
[1754338711637,0.5968,3683.8,3683.6,2.71471965]
[1754338712037,0.4616,3683.7,3683.5,2.71478606]
[1754338712334,0.4616,3683.6,3683.1,0.1372]
[1754338712570,3.001,3684.3,3683.1,0.002]
[1754338712571,0.91920483,3683.5,3683.1,0.002]
[1754338712867,0.1352,3683.2,3683.1,0.002]
[1754338713081,2.8502304,3683.2,3682.6,1.5444068]
[1754338713282,0.8992,3683.1,3682.6,1.5444068]
[1754338713574,0.1352,3682.8,3682.6,1.5444068]
[1754338713870,0.8992,3682.7,3682.6,1.5444068]
[1754338714950,0.1352,3682.8,3682.6,1.5444068]
[1754338715269,0.4616,3683.1,3682.6,0.1867068]
[1754338715492,0.5968,3683.0,3682.7,2.71539902]
[1754338715776,0.5968,3683.0,3682.8,2.71530469]
[1754338716945,0.4616,3682.9,3682.6,2.9021668]
[1754338717251,0.4616,3682.9,3682.8,2.71532529]
[1754338717664,0.4616,3682.9,3682.7,2.71537355]
[1754338717996,0.1352,3683.0,3682.6,2.90217407]
[1754338718141,0.5968,3683.0,3682.6,2.90217407]
[1754338718647,0.5968,3683.0,3682.8,2.71528024]
[1754338720157,0.5968,3683.0,3682.6,2.71547121]
[1754338720358,0.5968,3683.0,3682.9,2.71525156]
[1754338721943,0.5968,3683.0,3682.7,2.7153367]
[1754338722147,0.5968,3683.0,3682.9,2.71525156]
[1754338723296,0.5968,3683.0,3682.8,2.71530458]
[1754338723499,0.5968,3683.0,3682.7,2.71539902]
[1754338723700,2.71538442,3682.8,3682.5,0.002]
[1754338723859,0.1352,3682.6,3682.5,0.002]
[1754338724387,1.0344,3682.6,3682.5,0.002]
[1754338724763,3.74987276,3682.6,3682.0,2.71587012]
[1754338724964,0.1352,3682.4,3682.1,2.71580622]
[1754338725184,0.1352,3682.4,3682.0,4.244]
[1754338725185,0.8992,3682.3,3682.0,6.95989069]
[1754338725494,0.8992,3682.2,3682.0,2.71589069]
[1754338725699,0.4616,3682.1,3681.9,2.71597567]
[1754338725902,0.4376,3682.2,3681.9,2.71597567]
[1754338725903,0.4616,3682.2,3682.1,2.71577127]
[1754338726201,0.4616,3682.2,3682.0,2.71590373]
[1754338726378,0.4616,3682.2,3682.1,2.7158415]
[1754338728210,0.4616,3682.2,3682.0,2.71588639]
[1754338728507,0.4858,3682.1,3682.0,2.71588639]
[1754338728800,0.4858,3682.1,3681.8,7.09525653]
[1754338729107,0.4858,3682.1,3682.0,2.71591526]
[1754338729864,0.4858,3682.1,3681.9,2.71597624]
[1754338730095,0.4858,3682.1,3682.0,2.71591526]
[1754338731708,0.1352,3682.4,3681.8,0.1352]
[1754338731913,1.0562,3682.1,3681.9,6.95797998]
[1754338732133,0.5704,3682.1,3681.7,0.002]
[1754338732313,0.921,3682.0,3681.9,4.242]
[1754338733502,0.1352,3682.1,3681.9,4.242]
[1754338733703,0.1352,3682.1,3682.0,2.71591526]
[1754338735799,0.621,3682.1,3682.0,2.71591526]
[1754338736778,1.0562,3682.1,3681.7,0.002]
[1754338737064,0.1352,3681.8,3681.7,0.002]
[1754338737360,2.85126279,3681.8,3681.7,0.002]
[1754338737559,20.81781368,3681.8,3681.7,0.002]
[1754338737700,55.60881368,3681.8,3681.7,0.002]
[1754338739451,2.71655287,3681.2,3680.9,2.5296427]
[1754338739654,4.241,3681.2,3680.9,2.5296427]
[1754338739855,0.921,3681.1,3680.9,2.5296427]
[1754338740210,6.95751202,3681.2,3680.9,2.5296427]
[1754338740434,0.921,3681.0,3680.9,2.5296427]
[1754338740833,0.921,3681.0,3680.9,2.5316427]
[1754338741035,0.921,3681.0,3680.9,1.1732427]
[1754338741222,3.63765308,3681.0,3680.9,1.1732427]
[1754338741550,4.20765791,3681.0,3680.9,0.002]
[1754338741721,5.42091837,3681.0,3680.9,0.002]
[1754338742042,5.40091354,3681.0,3680.9,0.002]
[1754338742350,0.4352,3681.5,3681.2,2.71644593]
[1754338742518,0.4858,3681.6,3681.2,2.71644593]
[1754338742844,0.1352,3681.2,3681.0,2.71665308]
[1754338743450,4.241,3681.9,3681.8,2.71605526]
[1754338744110,0.1352,3682.0,3681.9,2.71598902]
[1754338745112,4.24,3682.8,3682.5,2.7155203]
[1754338745349,4.24,3682.8,3682.4,2.7155954]
[1754338745350,0.1352,3682.5,3682.4,2.7155954]
[1754338745914,0.1352,3682.5,3682.3,2.71567828]
[1754338746113,0.621,3682.5,3682.3,2.71567828]
[1754338746350,0.1352,3682.5,3682.4,2.71562024]
[1754338747062,0.1352,3682.5,3682.2,2.71576071]
[1754338747431,0.1352,3682.5,3682.4,2.71562024]
[1754338748452,0.1352,3682.5,3682.2,2.7157029]
[1754338748647,0.4858,3682.4,3682.0,2.71591526]
[1754338748837,0.4858,3682.4,3682.3,2.71569399]
[1754338749042,0.4858,3682.4,3682.0,2.71591526]
[1754338749243,0.4858,3682.4,3682.2,2.71571429]
[1754338749863,0.4858,3682.4,3682.3,2.71569399]
[1754338750068,0.1352,3682.5,3682.3,2.71569399]
[1754338750367,0.1352,3682.5,3682.4,2.71562024]
[1754338750740,0.1352,3682.5,3682.3,2.71566815]
[1754338751141,0.1352,3682.5,3682.2,2.71574068]
[1754338751577,0.621,3682.5,3682.2,2.71574068]
[1754338751872,0.921,3682.4,3681.8,6.95505032]
[1754338752036,0.1352,3682.3,3682.0,2.71586007]
[1754338752371,0.1352,3682.3,3682.2,2.71576774]
[1754338753260,0.1352,3682.5,3682.3,2.71564155]
[1754338753464,0.1352,3682.5,3682.2,2.71574798]
[1754338753665,0.621,3682.5,3682.0,2.7159015]
[1754338753867,0.621,3682.5,3681.9,3.0856746]
[1754338754060,0.621,3682.5,3682.2,2.71576359]
[1754338755154,0.621,3682.5,3682.3,2.71568806]
[1754338755484,0.621,3682.5,3682.1,2.71577607]
[1754338755670,0.621,3682.5,3682.0,1.6329]
[1754338755671,0.621,3682.5,3682.4,2.71562024]
[1754338756174,0.1352,3682.5,3682.4,2.71562024]
[1754338756739,0.1352,3682.5,3682.2,2.715704]
[1754338757348,0.6409,3682.5,3682.3,2.71569039]
[1754338757749,0.6409,3682.5,3682.2,2.71574013]
[1754338758494,0.6409,3682.5,3682.0,4.34880696]
[1754338758694,0.6409,3682.5,3682.2,2.71571333]
[1754338759870,0.1352,3682.5,3682.2,2.71571333]
[1754338760073,0.5057,3682.4,3682.1,2.7158415]
[1754338760484,0.5057,3682.4,3682.2,2.71572665]
[1754338760963,0.5057,3682.4,3682.3,2.71569399]
[1754338761363,0.1352,3682.5,3682.3,2.71569399]
[1754338761571,0.1352,3682.5,3682.4,2.71562024]
[1754338761790,0.1352,3682.5,3682.2,2.71575077]
[1754338762105,0.1352,3682.5,3682.4,2.71562024]
[1754338763353,0.1362,3682.8,3682.7,2.71539902]
[1754338763559,1e-08,3683.0,3682.9,2.71525156]
[1754338763786,1e-08,3683.0,3682.9,2.74240407]
[1754338764091,1e-08,3683.0,3682.9,6.51520407]
[1754338764254,1e-08,3683.0,3682.9,6.48805156]
[1754338764456,1e-08,3683.0,3682.9,9.21671342]
[1754338764866,1e-08,3683.0,3682.9,6.50146186]
[1754338765167,1e-08,3683.0,3682.9,6.48805156]
[1754338767889,1e-08,3683.0,3682.9,10.72205156]
[1754338769388,1e-08,3683.0,3682.9,12.35495156]
[1754338770799,0.1362,3683.8,3682.9,12.35495156]
[1754338770800,1e-08,3683.8,3683.7,2.71466188]
[1754338770984,1e-08,3683.8,3683.7,11.60670849]
[1754338771172,1e-08,3683.8,3683.7,13.78450738]
[1754338771986,1e-08,3683.8,3683.7,13.14690738]
[1754338773489,1e-08,3683.8,3683.7,8.91490738]
[1754338773689,1e-08,3683.8,3683.7,5.91490738]
[1754338773690,0.50570001,3683.8,3683.7,5.91490738]
[1754338773892,0.50570001,3683.8,3683.7,10.34499682]
[1754338774192,1e-08,3683.8,3683.7,10.34499682]
[1754338775266,1e-08,3683.8,3683.7,8.71209682]
[1754338775508,1e-08,3683.8,3683.7,12.34969682]
[1754338777020,1e-08,3683.8,3683.7,11.71209682]
[1754338778149,1e-08,3683.8,3683.7,7.48109682]
[1754338778449,1e-08,3683.8,3683.7,11.71009682]
[1754338779659,1e-08,3683.8,3683.7,7.48109682]
[1754338779964,0.95280001,3683.8,3683.7,7.27795132]
[1754338780461,1e-08,3683.8,3683.7,8.91085132]
[1754338782857,0.50570001,3683.8,3683.7,7.27795132]
[1754338783060,0.95280001,3683.8,3683.7,3.04895132]
[1754338783362,0.95280001,3683.8,3683.7,2.71466188]
[1754338783565,0.95280001,3683.8,3683.7,6.94266188]
[1754338784350,0.95280001,3683.8,3683.7,2.71466188]
[1754338784551,0.95280001,3683.8,3683.7,6.94166188]
[1754338784746,0.50570001,3683.8,3683.7,4.227]
[1754338784921,0.50570001,3683.8,3683.7,6.94166188]
[1754338787882,0.50570001,3683.8,3683.7,6.94066188]
[1754338789057,0.50570001,3683.8,3683.7,2.71466188]
[1754338789260,0.50570001,3683.8,3683.4,2.7148199]
[1754338789466,0.1352,3683.5,3683.4,2.71488298]
[1754338790155,0.6389,3683.5,3683.4,2.71488298]
[1754338790763,1.1091,3683.5,3683.3,4.226]
[1754338790985,0.1352,3683.5,3683.4,2.71488298]
[1754338791560,1.1091,3683.5,3683.4,2.71488298]
[1754338793217,1.1091,3683.5,3683.1,4.225]
[1754338793386,1e-08,3683.8,3683.2,2.71498227]
[1754338793587,0.1352,3683.3,3683.2,2.71498227]
[1754338793773,1.1091,3683.3,3683.2,2.71498227]
[1754338794172,0.5037,3683.7,3683.6,2.71473558]
[1754338794504,0.4702,3683.7,3683.6,2.71473558]
[1754338794871,0.9739,3683.7,3683.6,2.71473558]
[1754338795707,0.1352,3683.6,3683.5,2.71478116]
[1754338795996,1.1091,3683.6,3683.5,2.71478116]
[1754338796704,1.1091,3683.6,3683.4,2.71483425]
[1754338796897,0.1352,3683.6,3683.4,2.71483425]
[1754338797070,0.9739,3683.5,3683.4,2.71483425]
[1754338797802,0.9739,3683.5,3683.3,0.002]
[1754338797958,0.1352,3683.6,3683.4,2.7148152]
[1754338798159,0.9739,3683.5,3683.4,2.7148152]
[1754338798864,0.9739,3683.5,3683.3,0.002]
[1754338799171,0.9739,3683.4,3683.3,0.002]
[1754338799390,0.9739,3683.4,3682.9,6.94125074]
[1754338799592,1.1091,3683.3,3683.2,2.71497726]
[1754338801000,1.1091,3683.3,3682.9,2.8684]
[1754338801192,0.1352,3683.3,3682.9,2.8684]
[1754338801503,0.9739,3683.2,3683.1,2.71510412]
[1754338801794,0.9739,3683.2,3682.9,2.71522248]
[1754338802007,2.7147385,3683.6,3682.7,2.85059038]
[1754338802008,0.9739,3683.1,3682.7,5.8559]
[1754338802202,0.1352,3682.8,3682.7,2.71535111]
[1754338802566,1.1091,3682.8,3682.6,2.71745882]
[1754338802769,0.1352,3682.8,3682.5,9.44844892]
[1754338802969,0.1352,3682.8,3682.6,2.71542052]
[1754338802970,0.9739,3682.7,3682.6,2.71542052]
[1754338804003,0.1352,3682.8,3682.7,2.71539902]
[1754338804299,0.1352,3682.8,3682.6,2.71542052]
[1754338804496,0.1352,3682.8,3682.7,2.71539902]
[1754338805002,0.5037,3682.7,3682.5,7.94097062]
[1754338805186,0.1352,3682.8,3682.7,2.71539902]
[1754338805389,0.6389,3683.2,3683.0,2.71512843]
[1754338805821,0.5037,3683.1,3683.0,2.71512843]
[1754338806002,0.5037,3683.1,3683.0,2.71512936]
[1754338807737,0.9739,3683.1,3682.7,2.71539902]
[1754338807938,4.07152579,3683.0,3682.5,5.22544892]
[1754338808112,0.1352,3682.7,3682.5,5.22544892]
[1754338808440,0.9739,3682.6,3682.5,5.22544892]
[1754338809206,0.9739,3682.6,3682.5,3.86774892]
[1754338809550,3.68937276,3682.6,3682.5,3.86774892]
[1754338809704,4.34536355,3682.6,3682.5,3.86774892]
[1754338810317,2.7155465,3682.5,3682.4,0.002]
[1754338810631,4.2394465,3682.5,3682.4,0.002]
[1754338811026,7.2394465,3682.5,3682.4,0.002]
[1754338811639,53.60855336,3682.5,3682.4,1e-08]
[1754338811816,56.33721522,3682.5,3682.4,1e-08]
[1754338812010,3.26576774,3682.2,3682.1,1e-08]
[1754338812210,0.55,3681.8,3680.0,0.33795558]
[1754338812566,2.85235757,3680.4,3679.7,2.85478903]
[1754338812711,0.1352,3680.0,3679.7,0.002]
[1754338813041,2.71725726,3680.2,3679.7,0.002]
[1754338813042,2.71731519,3680.2,3679.7,0.002]
[1754338813236,0.4702,3679.9,3679.7,0.002]
[1754338813842,0.5037,3680.2,3679.7,0.002]
[1754338814042,4.222,3680.5,3679.8,2.71748747]
[1754338814256,4.222,3680.5,3679.7,0.002]
[1754338814460,0.1352,3680.0,3679.7,0.002]
[1754338814655,0.1352,3680.0,3679.9,2.71746514]
[1754338814833,4.6912,3680.6,3680.2,2.71719401]
[1754338815234,0.1352,3680.2,3680.1,2.71731746]
[1754338815437,3.0,3681.0,3680.6,2.71693669]
[1754338815438,3.0,3680.9,3680.6,2.71693669]
[1754338815635,0.5037,3681.4,3680.1,0.54347256]
[1754338815636,0.4702,3681.2,3680.2,0.02717243]
[1754338815837,0.5037,3681.4,3680.2,0.02717243]
[1754338815838,0.1352,3680.5,3680.4,2.71709596]
[1754338816036,0.1352,3680.9,3680.7,2.7168613]
[1754338816242,0.1352,3680.9,3680.8,2.71680069]
[1754338817329,0.4598,3681.8,3680.8,0.3697]
[1754338817651,4.221,3681.6,3681.2,2.7164407]
[1754338817853,0.1352,3681.2,3681.1,2.71656449]
[1754338818049,0.1352,3681.2,3680.6,0.1352]
[1754338818050,0.595,3681.2,3680.6,0.1352]
[1754338818249,0.1352,3681.0,3680.9,2.71670236]
[1754338818563,0.1352,3681.0,3680.4,0.1352]